[Event "MČR družstev mladších žáků 2024"]
[Site "Harrachov, Czech Republic"]
[Date "2024.06.15"]
[Round "7.7"]
[White "Cerny Rodan"]
[Black "Vancakova Veronika"]
[Result "1-0"]
[TimeControl "25+10"]
[WhiteFideId "23746165"]
[BlackFideId "23731907"]
[WhiteElo "1299"]
[BlackElo "1437"]

1. e4 {[%clk 00:25:14]} {[%emt 00:00:02]} d6 {[%clk 00:25:18]} {[%emt
00:00:07]} 2. d4 {[%clk 00:25:22]} {[%emt 00:00:02]} Nf6 {[%clk 00:25:25]}
{[%emt 00:00:03]} 3. Bd3 {[%clk 00:25:27]} {[%emt 00:00:04]} e5 {[%clk
00:25:32]} {[%emt 00:00:03]} 4. c3 {[%clk 00:24:35]} {[%emt 00:01:02]} Be7
{[%clk 00:24:45]} {[%emt 00:00:57]} 5. f4 {[%clk 00:24:31]} {[%emt 00:00:14]}
O-O {[%clk 00:22:00]} {[%emt 00:02:55]} 6. Nf3 {[%clk 00:24:15]} {[%emt
00:00:25]} exf4 {[%clk 00:19:52]} {[%emt 00:02:19]} 7. Bxf4 {[%clk 00:24:14]}
{[%emt 00:00:11]} Nc6 {[%clk 00:16:46]} {[%emt 00:03:16]} 8. O-O {[%clk
00:23:51]} {[%emt 00:00:33]} Bg4 {[%clk 00:15:20]} {[%emt 00:01:37]} 9. Nbd2
{[%clk 00:23:33]} {[%emt 00:00:27]} Re8 {[%clk 00:14:32]} {[%emt 00:00:58]} 10.
Qc2 {[%clk 00:23:00]} {[%emt 00:00:42]} Nd7 {[%clk 00:07:21]} {[%emt 00:07:22]}
11. Rae1 {[%clk 00:20:28]} {[%emt 00:02:41]} Bh5 {[%clk 00:07:29]} {[%emt
00:00:03]} 12. Nc4 {[%clk 00:17:36]} {[%emt 00:03:02]} Bg6 {[%clk 00:07:17]}
{[%emt 00:00:23]} 13. e5 {[%clk 00:16:04]} {[%emt 00:01:42]} dxe5 {[%clk
00:06:26]} {[%emt 00:01:01]} 14. Ncxe5 {[%clk 00:16:00]} {[%emt 00:00:14]}
Ndxe5 {[%clk 00:06:13]} {[%emt 00:00:23]} 15. Nxe5 {[%clk 00:15:11]} {[%emt
00:00:58]} Nxe5 {[%clk 00:04:12]} {[%emt 00:02:11]} 16. Bxe5 {[%clk 00:14:57]}
{[%emt 00:00:23]} Bd6 {[%clk 00:01:10]} {[%emt 00:03:13]} 17. Bxd6 {[%clk
00:12:43]} {[%emt 00:02:24]} Qxd6 {[%clk 00:01:16]} {[%emt 00:00:04]} 18. Bxg6
{[%clk 00:11:51]} {[%emt 00:01:01]} Qxg6 {[%clk 00:01:01]} {[%emt 00:00:25]} 19.
Qb3 {[%clk 00:11:39]} {[%emt 00:00:22]} b6 {[%clk 00:00:40]} {[%emt 00:00:31]}
20. Qb5 {[%clk 00:10:40]} {[%emt 00:01:09]} Re6 {[%clk 00:00:26]} {[%emt
00:00:25]} 21. Qd7 {[%clk 00:10:11]} {[%emt 00:00:39]} c6 {[%clk 00:00:19]}
{[%emt 00:00:17]} 22. b3 {[%clk 00:09:20]} {[%emt 00:01:01]} h6 {[%clk
00:00:20]} {[%emt 00:00:09]} 23. h3 {[%clk 00:06:49]} {[%emt 00:02:41]} Rxe1 24.
Rxe1 Qf6 {[%clk 00:00:29]} 25. Rf1 {[%clk 00:05:46]} {[%emt 00:00:08]} Qe6
{[%clk 00:00:22]} {[%emt 00:00:17]} 26. Qxe6 {[%clk 00:05:22]} {[%emt
00:00:34]} fxe6 {[%clk 00:00:31]} {[%emt 00:00:01]} 27. Re1 {[%clk 00:05:14]}
{[%emt 00:00:18]} Kf7 {[%clk 00:00:40]} {[%emt 00:00:01]} 28. Kf2 {[%clk
00:05:19]} {[%emt 00:00:04]} Ke7 {[%clk 00:00:41]} {[%emt 00:00:09]} 29. Kf3
{[%clk 00:05:07]} {[%emt 00:00:22]} Rf8+ {[%clk 00:00:49]} {[%emt 00:00:02]} 30.
Ke3 {[%clk 00:05:01]} {[%emt 00:00:16]} Rf5 {[%clk 00:00:47]} {[%emt 00:00:12]}
31. Re2 {[%clk 00:05:00]} {[%emt 00:00:11]} Rf8 {[%clk 00:00:25]} {[%emt
00:00:32]} 32. Ke4 {[%clk 00:04:40]} {[%emt 00:00:30]} Rf1 {[%clk 00:00:28]}
{[%emt 00:00:08]} 33. c4 {[%clk 00:04:35]} {[%emt 00:00:15]} Rd1 {[%clk
00:00:26]} {[%emt 00:00:11]} 34. Ke5 {[%clk 00:04:22]} {[%emt 00:00:23]} Rf1
{[%clk 00:00:32]} {[%emt 00:00:04]} 35. g4 {[%clk 00:03:57]} {[%emt 00:00:35]}
Rd1 {[%clk 00:00:21]} {[%emt 00:00:21]} 36. Ke4 {[%clk 00:03:15]} {[%emt
00:00:52]} Rh1 {[%clk 00:00:21]} {[%emt 00:00:10]} 37. Re3 {[%clk 00:03:16]}
{[%emt 00:00:09]} Rd1 {[%clk 00:00:29]} {[%emt 00:00:02]} 38. Ke5 {[%clk
00:03:21]} {[%emt 00:00:05]} Rd2 {[%clk 00:00:34]} {[%emt 00:00:04]} 39. a3
{[%clk 00:03:13]} {[%emt 00:00:19]} Rd1 {[%clk 00:00:36]} {[%emt 00:00:08]} 40.
b4 {[%clk 00:02:39]} {[%emt 00:00:45]} Rc1 {[%clk 00:00:20]} {[%emt 00:00:26]}
41. d5 {[%clk 00:02:24]} {[%emt 00:00:25]} cxd5 {[%clk 00:00:21]} {[%emt
00:00:09]} 42. cxd5 {[%clk 00:02:32]} {[%emt 00:00:02]} exd5 {[%clk 00:00:28]}
{[%emt 00:00:03]} 43. Kxd5+ {[%clk 00:02:41]} {[%emt 00:00:02]} Kd7 {[%clk
00:00:34]} {[%emt 00:00:04]} 44. Rd3 {[%clk 00:02:30]} {[%emt 00:00:21]} Rc7
{[%clk 00:00:29]} {[%emt 00:00:15]} 45. Rf3 {[%clk 00:02:32]} {[%emt 00:00:08]}
Ke7 {[%clk 00:00:33]} {[%emt 00:00:06]} 46. Re3+ {[%clk 00:02:19]} {[%emt
00:00:24]} Kd7 {[%clk 00:00:23]} {[%emt 00:00:19]} 47. Rd3 {[%clk 00:02:05]}
{[%emt 00:00:24]} Rc1 {[%clk 00:00:23]} {[%emt 00:00:10]} 48. Ke5+ {[%clk
00:02:08]} {[%emt 00:00:06]} Ke7 {[%clk 00:00:30]} {[%emt 00:00:03]} 49. Kf5
{[%clk 00:02:07]} {[%emt 00:00:11]} Rc6 {[%clk 00:00:20]} {[%emt 00:00:19]} 50.
Re3+ {[%clk 00:02:08]} {[%emt 00:00:10]} Kd7 {[%clk 00:00:20]} {[%emt
00:00:11]} 51. Rd3+ {[%clk 00:01:58]} {[%emt 00:00:20]} Ke7 {[%clk 00:00:28]}
{[%emt 00:00:02]} 52. g5 {[%clk 00:01:32]} {[%emt 00:00:35]} g6+ {[%clk
00:00:16]} {[%emt 00:00:22]} 53. Ke5 {[%clk 00:01:21]} {[%emt 00:00:22]} Re6+
{[%clk 00:00:22]} {[%emt 00:00:04]} 54. Kf4 {[%clk 00:01:24]} {[%emt 00:00:07]}
h5 {[%clk 00:00:17]} {[%emt 00:00:14]} 55. h4 {[%clk 00:01:17]} {[%emt
00:00:17]} Rc6 {[%clk 00:00:21]} {[%emt 00:00:07]} 56. Ke5 {[%clk 00:01:18]}
{[%emt 00:00:09]} Re6+ {[%clk 00:00:28]} {[%emt 00:00:02]} 57. Kf4 {[%clk
00:01:18]} {[%emt 00:00:11]} Rc6 {[%clk 00:00:36]} {[%emt 00:00:02]} 58. Re3+
{[%clk 00:01:11]} {[%emt 00:00:17]} Kf7 {[%clk 00:00:36]} {[%emt 00:00:10]} 59.
Re4 {[%clk 00:00:53]} {[%emt 00:00:28]} Rc1 {[%clk 00:00:25]} {[%emt 00:00:20]}
60. b5 {[%clk 00:00:49]} {[%emt 00:00:14]} Rc5 {[%clk 00:00:28]} {[%emt
00:00:07]} 61. a4 {[%clk 00:00:49]} {[%emt 00:00:10]} Rf5+ {[%clk 00:00:22]}
{[%emt 00:00:16]} 62. Ke3 {[%clk 00:00:52]} {[%emt 00:00:08]} Rc5 {[%clk
00:00:22]} {[%emt 00:00:10]} 63. Kd4 {[%clk 00:00:45]} {[%emt 00:00:17]} Rc1
{[%clk 00:00:27]} {[%emt 00:00:04]} 64. Rf4+ {[%clk 00:00:45]} {[%emt
00:00:12]} Kg7 {[%clk 00:00:31]} {[%emt 00:00:05]} 65. Kd5 {[%clk 00:00:43]}
{[%emt 00:00:13]} Rc5+ {[%clk 00:00:28]} {[%emt 00:00:13]} 66. Ke6 {[%clk
00:00:42]} {[%emt 00:00:11]} Rc7 {[%clk 00:00:30]} {[%emt 00:00:07]} 67. Kd6
{[%clk 00:00:45]} {[%emt 00:00:07]} Rc1 {[%clk 00:00:33]} {[%emt 00:00:08]} 68.
Kd7 {[%clk 00:00:42]} {[%emt 00:00:13]} Rc2 {[%clk 00:00:36]} {[%emt 00:00:06]}
69. Ke6 {[%clk 00:00:37]} {[%emt 00:00:16]} Re2+ {[%clk 00:00:40]} {[%emt
00:00:06]} 70. Kd7 {[%clk 00:00:37]} {[%emt 00:00:10]} Rc2 {[%clk 00:00:48]}
{[%emt 00:00:01]} 71. Re4 {[%clk 00:00:32]} {[%emt 00:00:16]} Rc1 {[%clk
00:00:53]} {[%emt 00:00:05]} 72. Re7 {[%clk 00:00:38]} {[%emt 00:00:04]} Kf8
{[%clk 00:00:52]} {[%emt 00:00:11]} 73. Re4 {[%clk 00:00:34]} {[%emt 00:00:13]}
Kg7 {[%clk 00:00:46]} {[%emt 00:00:16]} 74. Ke7 {[%clk 00:00:42]} {[%emt
00:00:02]} Rc2 {[%clk 00:00:48]} {[%emt 00:00:07]} 75. Rd4 {[%clk 00:00:40]}
{[%emt 00:00:13]} Re2+ {[%clk 00:00:46]} {[%emt 00:00:12]} 76. Kd7 {[%clk
00:00:46]} {[%emt 00:00:04]} Rc2 {[%clk 00:00:54]} {[%emt 00:00:01]} 77. Kd8
{[%clk 00:00:47]} {[%emt 00:00:09]} Rc1 {[%clk 00:00:57]} {[%emt 00:00:06]} 78.
Rd7+ {[%clk 00:00:45]} {[%emt 00:00:12]} Kf8 {[%clk 00:01:00]} {[%emt
00:00:07]} 79. Rxa7 {[%clk 00:00:54]} {[%emt 00:00:02]} Rc4 {[%clk 00:01:03]}
{[%emt 00:00:07]} 80. Ra6 {[%clk 00:00:59]} {[%emt 00:00:06]} Rxh4 {[%clk
00:01:10]} {[%emt 00:00:02]} 81. Rxb6 {[%clk 00:01:07]} {[%emt 00:00:01]} Rxa4
{[%clk 00:01:05]} {[%emt 00:00:16]} 82. Rxg6 {[%clk 00:01:13]} {[%emt
00:00:04]} Rb4 {[%clk 00:00:57]} {[%emt 00:00:17]} 83. b6 {[%clk 00:01:21]}
{[%emt 00:00:02]} Kf7 {[%clk 00:00:52]} {[%emt 00:00:14]} 84. Rf6+ {[%clk
00:01:28]} {[%emt 00:00:04]} Kg7 {[%clk 00:00:59]} {[%emt 00:00:03]} 85. Kc7
{[%clk 00:01:30]} {[%emt 00:00:08]} Rc4+ {[%clk 00:00:58]} {[%emt 00:00:10]} 86.
Rc6 {[%clk 00:01:28]} {[%emt 00:00:12]} Rf4 {[%clk 00:00:40]} {[%emt 00:00:27]}
87. b7 {[%clk 00:01:21]} {[%emt 00:00:19]} Rf7+ {[%clk 00:00:48]} {[%emt
00:00:01]} 88. Kb6 {[%clk 00:01:27]} {[%emt 00:00:03]} 1-0



[ePGN "0.1;DGT LiveChess/2.2.6"]

[Event "MČR družstev mladších žáků 2024"]
[Site "Harrachov, Czech Republic"]
[Date "2024.06.15"]
[Round "7.8"]
[White "Walder Hugo"]
[Black "Lutskiy Mikhail"]
[Result "1/2-1/2"]
[TimeControl "25+10"]
[WhiteFideId "23743360"]
[BlackFideId "23744308"]
[WhiteElo "1489"]
[BlackElo "1446"]

1. e4 {[%clk 00:25:17]} {[%emt 00:00:02]} c5 {[%clk 00:25:12]} {[%emt
00:00:09]} 2. Nf3 {[%clk 00:25:26]} {[%emt 00:00:01]} g6 {[%clk 00:25:19]}
{[%emt 00:00:03]} 3. d4 {[%clk 00:25:35]} {[%emt 00:00:01]} cxd4 {[%clk
00:25:27]} {[%emt 00:00:02]} 4. Nxd4 {[%clk 00:25:43]} {[%emt 00:00:01]} Bg7
{[%clk 00:25:36]} {[%emt 00:00:01]} 5. Be3 {[%clk 00:25:48]} {[%emt 00:00:05]}
Nc6 {[%clk 00:25:39]} {[%emt 00:00:07]} 6. c3 {[%clk 00:25:21]} {[%emt
00:00:37]} Nf6 {[%clk 00:25:40]} {[%emt 00:00:09]} 7. f3 {[%clk 00:25:00]}
{[%emt 00:00:31]} O-O {[%clk 00:25:40]} {[%emt 00:00:10]} 8. Bc4 {[%clk
00:25:05]} {[%emt 00:00:05]} d6 {[%clk 00:25:45]} {[%emt 00:00:06]} 9. Bb3
{[%clk 00:25:11]} {[%emt 00:00:03]} a6 {[%clk 00:25:49]} {[%emt 00:00:05]} 10.
h4 {[%clk 00:25:16]} {[%emt 00:00:07]} Ne5 {[%clk 00:25:27]} {[%emt 00:00:31]}
11. Qd2 {[%clk 00:24:50]} {[%emt 00:00:33]} a5 {[%clk 00:25:04]} {[%emt
00:00:34]} 12. a3 {[%clk 00:24:47]} {[%emt 00:00:14]} a4 {[%clk 00:25:00]}
{[%emt 00:00:14]} 13. Ba2 {[%clk 00:24:55]} {[%emt 00:00:02]} Bd7 {[%clk
00:25:01]} {[%emt 00:00:09]} 14. h5 {[%clk 00:25:03]} {[%emt 00:00:03]} b5
{[%clk 00:23:52]} {[%emt 00:01:18]} 15. hxg6 {[%clk 00:25:09]} {[%emt
00:00:04]} Nxg6 {[%clk 00:23:39]} {[%emt 00:00:22]} 16. Bh6 {[%clk 00:24:51]}
{[%emt 00:00:28]} e6 {[%clk 00:23:34]} {[%emt 00:00:15]} 17. Bxg7 {[%clk
00:24:43]} {[%emt 00:00:18]} Kxg7 {[%clk 00:23:41]} {[%emt 00:00:03]} 18. Qh6+
{[%clk 00:24:51]} {[%emt 00:00:02]} Kg8 {[%clk 00:23:43]} {[%emt 00:00:08]} 19.
g4 {[%clk 00:24:13]} {[%emt 00:00:48]} Re8 {[%clk 00:23:23]} {[%emt 00:00:26]}
20. g5 {[%clk 00:24:21]} {[%emt 00:00:06]} Rc8 {[%clk 00:22:23]} {[%emt
00:01:10]} 21. gxf6 {[%clk 00:24:16]} {[%emt 00:00:15]} Qxf6 {[%clk 00:22:31]}
{[%emt 00:00:02]} 22. Qxh7+ {[%clk 00:23:37]} {[%emt 00:00:48]} Kf8 {[%clk
00:22:38]} {[%emt 00:00:03]} 23. Nd2 {[%clk 00:20:59]} {[%emt 00:02:48]} Ke7
{[%clk 00:22:35]} {[%emt 00:00:13]} 24. Qh2 {[%clk 00:20:25]} {[%emt 00:00:44]}
Rh8 {[%clk 00:22:36]} {[%emt 00:00:09]} 25. Qg2 {[%clk 00:20:20]} {[%emt
00:00:16]} Nf4 {[%clk 00:21:48]} {[%emt 00:00:57]} 26. Qf1 {[%clk 00:20:04]}
{[%emt 00:00:22]} Nd3+ {[%clk 00:21:30]} {[%emt 00:00:32]} 27. Ke2 {[%clk
00:18:19]} {[%emt 00:01:51]} Nxb2 {[%clk 00:21:05]} {[%emt 00:00:39]} 28. Rb1
{[%clk 00:18:11]} {[%emt 00:00:09]} Rxc3 {[%clk 00:20:22]} {[%emt 00:01:04]} 29.
Rxh8 {[%clk 00:15:40]} {[%emt 00:02:41]} Qxh8 {[%clk 00:20:23]} {[%emt
00:00:09]} 30. Qf2 {[%clk 00:15:20]} {[%emt 00:00:29]} Nd3 {[%clk 00:20:06]}
{[%emt 00:00:24]} 31. Qg1 {[%clk 00:15:07]} {[%emt 00:00:25]} Nf4+ {[%clk
00:19:42]} {[%emt 00:00:35]} 32. Kd1 {[%clk 00:15:06]} {[%emt 00:00:11]} Nh3
{[%clk 00:19:09]} {[%emt 00:00:42]} 33. Qg3 {[%clk 00:14:35]} {[%emt 00:00:42]}
Qxd4 {[%clk 00:18:42]} {[%emt 00:00:36]} 34. Qxh3 {[%clk 00:14:43]} {[%emt
00:00:03]} Qg1+ {[%clk 00:18:07]} {[%emt 00:00:45]} 35. Qf1 {[%clk 00:14:36]}
{[%emt 00:00:06]} Qxf1+ {[%clk 00:18:12]} {[%emt 00:00:16]} 36. Nxf1 {[%clk
00:14:44]} {[%emt 00:00:02]} Rxa3 {[%clk 00:18:20]} {[%emt 00:00:02]} 37. Rb2
{[%clk 00:14:20]} {[%emt 00:00:33]} Rxf3 {[%clk 00:18:23]} {[%emt 00:00:08]} 38.
Nd2 {[%clk 00:14:29]} {[%emt 00:00:01]} Re3 {[%clk 00:18:17]} {[%emt 00:00:10]}
39. Bb1 {[%clk 00:13:31]} {[%emt 00:01:10]} Bc6 {[%clk 00:17:46]} {[%emt
00:00:43]} 40. Rb4 {[%clk 00:13:27]} {[%emt 00:00:16]} Kd7 {[%clk 00:17:07]}
{[%emt 00:00:49]} 41. Nf1 {[%clk 00:13:25]} {[%emt 00:00:09]} Ra3 {[%clk
00:16:48]} {[%emt 00:00:25]} 42. Kc1 {[%clk 00:13:25]} {[%emt 00:00:15]} Rf3
{[%clk 00:16:42]} {[%emt 00:00:11]} 43. Nd2 {[%clk 00:13:33]} {[%emt 00:00:08]}
Rf4 {[%clk 00:16:43]} {[%emt 00:00:09]} 44. Bd3 {[%clk 00:13:29]} {[%emt
00:00:15]} d5 {[%clk 00:16:37]} {[%emt 00:00:16]} 45. Bxb5 {[%clk 00:13:11]}
{[%emt 00:00:28]} Bxb5 {[%clk 00:16:42]} {[%emt 00:00:05]} 46. Rxb5 {[%clk
00:12:34]} {[%emt 00:00:47]} dxe4 {[%clk 00:16:49]} {[%emt 00:00:03]} 47. Rb4
{[%clk 00:12:38]} {[%emt 00:00:06]} f5 {[%clk 00:16:55]} {[%emt 00:00:04]} 48.
Rxa4 {[%clk 00:12:45]} {[%emt 00:00:03]} e5 {[%clk 00:16:57]} {[%emt 00:00:09]}
49. Kd1 {[%clk 00:12:11]} {[%emt 00:00:44]} Rg4 {[%clk 00:16:33]} {[%emt
00:00:27]} 50. Ke2 {[%clk 00:11:56]} {[%emt 00:00:32]} Rg2+ {[%clk 00:16:36]}
{[%emt 00:00:06]} 51. Ke3 {[%clk 00:11:33]} {[%emt 00:00:34]} f4+ {[%clk
00:16:30]} {[%emt 00:00:16]} 52. Kxe4 {[%clk 00:11:42]} {[%emt 00:00:02]} Rxd2
{[%clk 00:16:33]} {[%emt 00:00:06]} 53. Kxe5 {[%clk 00:11:49]} {[%emt
00:00:03]} f3 {[%clk 00:16:29]} {[%emt 00:00:14]} 54. Rf4 {[%clk 00:11:58]}
{[%emt 00:00:02]} f2 {[%clk 00:16:34]} {[%emt 00:00:05]} 55. Ke4 {[%clk
00:11:55]} {[%emt 00:00:13]} Re2+ {[%clk 00:16:39]} {[%emt 00:00:04]} 56. Kd3
{[%clk 00:12:01]} {[%emt 00:00:05]} Ra2 {[%clk 00:16:39]} {[%emt 00:00:06]} 57.
Ke3 {[%clk 00:12:00]} {[%emt 00:00:15]} 1/2-1/2



[ePGN "0.1;DGT LiveChess/2.2.6"]

[Event "MČR družstev mladších žáků 2024"]
[Site "Harrachov, Czech Republic"]
[Date "2024.06.15"]
[Round "7.9"]
[White "Cerny Ren"]
[Black "Bucek Vit"]
[Result "0-1"]
[TimeControl "25+10"]
[WhiteFideId "23754559"]
[BlackFideId "23750812"]
[WhiteElo "1317"]
[BlackElo "1582"]

1. e4 {[%clk 00:25:17]} {[%emt 00:00:02]} c5 {[%clk 00:25:19]} {[%emt
00:00:01]} 2. c3 {[%clk 00:25:22]} {[%emt 00:00:05]} d5 {[%clk 00:25:16]}
{[%emt 00:00:13]} 3. exd5 {[%clk 00:25:16]} {[%emt 00:00:16]} Qxd5 {[%clk
00:25:24]} {[%emt 00:00:02]} 4. d4 {[%clk 00:25:24]} {[%emt 00:00:02]} Nc6
{[%clk 00:25:31]} {[%emt 00:00:03]} 5. Nf3 {[%clk 00:25:06]} {[%emt 00:00:28]}
Bg4 {[%emt 00:00:07]} 6. Be2 {[%clk 00:24:58]} {[%emt 00:00:15]} e6 {[%clk
00:25:24]} {[%emt 00:00:23]} 7. O-O {[%clk 00:24:27]} {[%emt 00:00:41]} Nf6
{[%clk 00:25:24]} {[%emt 00:00:10]} 8. Be3 {[%clk 00:22:41]} {[%emt 00:01:56]}
cxd4 {[%clk 00:24:45]} {[%emt 00:00:50]} 9. cxd4 {[%clk 00:22:41]} {[%emt
00:00:10]} Be7 {[%clk 00:24:29]} {[%emt 00:00:24]} 10. Nc3 {[%clk 00:22:23]}
{[%emt 00:00:30]} Qd8 {[%clk 00:24:24]} {[%emt 00:00:11]} 11. Rc1 {[%clk
00:21:16]} {[%emt 00:01:21]} O-O {[%clk 00:24:17]} {[%emt 00:00:17]} 12. Qb3
{[%clk 00:19:01]} {[%emt 00:02:24]} Bxf3 {[%clk 00:19:57]} {[%emt 00:04:31]} 13.
Bxf3 {[%clk 00:18:43]} {[%emt 00:00:27]} Nxd4 {[%clk 00:20:03]} {[%emt
00:00:04]} 14. Bxd4 {[%clk 00:18:37]} {[%emt 00:00:16]} Qxd4 {[%clk 00:20:11]}
{[%emt 00:00:03]} 15. Qxb7 {[%clk 00:18:26]} {[%emt 00:00:22]} Qd8 {[%clk
00:18:57]} {[%emt 00:01:19]} 16. Rfd1 {[%clk 00:17:55]} {[%emt 00:00:44]} Bd6
{[%clk 00:17:53]} {[%emt 00:01:12]} 17. Qa6 {[%clk 00:17:22]} {[%emt 00:00:46]}
Rb8 {[%clk 00:16:02]} {[%emt 00:02:01]} 18. Qxd6 {[%clk 00:16:49]} {[%emt
00:00:42]} Qa5 {[%clk 00:15:50]} {[%emt 00:00:17]} 19. Qa3 {[%clk 00:16:29]}
{[%emt 00:00:33]} Qb6 {[%clk 00:15:46]} {[%emt 00:00:06]} 20. b3 {[%clk
00:15:01]} {[%emt 00:01:47]} Rfc8 {[%clk 00:15:30]} {[%emt 00:00:25]} 21. Ne4
{[%clk 00:11:15]} {[%emt 00:03:57]} Nxe4 {[%clk 00:15:11]} {[%emt 00:00:30]} 22.
Bxe4 {[%clk 00:11:19]} {[%emt 00:00:06]} h6 {[%clk 00:14:56]} {[%emt 00:00:25]}
23. Rxc8+ {[%clk 00:10:10]} {[%emt 00:01:19]} Rxc8 {[%clk 00:15:04]} {[%emt
00:00:03]} 24. Qb2 {[%clk 00:09:56]} {[%emt 00:00:23]} a5 {[%clk 00:14:30]}
{[%emt 00:00:44]} 25. Qd4 {[%clk 00:08:26]} {[%emt 00:01:40]} Qxd4 {[%clk
00:14:35]} {[%emt 00:00:06]} 0-1



[ePGN "0.1;DGT LiveChess/2.2.6"]

[Event "MČR družstev mladších žáků 2024"]
[Site "Harrachov, Czech Republic"]
[Date "2024.06.16"]
[Round "8.1"]
[White "Vanek Martin"]
[Black "Zrust Lukas"]
[Result "1/2-1/2"]
[TimeControl "25+10"]
[WhiteFideId "23769238"]
[BlackFideId "23736666"]
[WhiteElo "1580"]
[BlackElo "1742"]

1. d4 {[%clk 00:25:18]} {[%emt 16:10:32]} Nf6 {[%clk 00:25:19]} {[%emt
00:00:02]} 2. c4 {[%clk 00:25:27]} {[%emt 00:00:02]} g6 {[%clk 00:25:28]}
{[%emt 00:00:01]} 3. Nc3 {[%clk 00:25:34]} {[%emt 00:00:02]} d5 {[%clk
00:25:36]} {[%emt 00:00:01]} 4. cxd5 {[%clk 00:25:39]} {[%emt 00:00:05]} Nxd5
{[%clk 00:25:44]} {[%emt 00:00:02]} 5. e4 {[%clk 00:25:45]} {[%emt 00:00:04]}
Nxc3 {[%clk 00:25:53]} {[%emt 00:00:02]} 6. bxc3 {[%clk 00:25:52]} {[%emt
00:00:02]} Bg7 {[%clk 00:26:01]} {[%emt 00:00:01]} 7. Bc4 {[%clk 00:25:59]}
{[%emt 00:00:03]} O-O {[%clk 00:26:09]} {[%emt 00:00:02]} 8. Ne2 {[%clk
00:25:59]} {[%emt 00:00:10]} c5 {[%clk 00:26:14]} {[%emt 00:00:05]} 9. O-O
{[%clk 00:25:48]} {[%emt 00:00:20]} Nc6 {[%clk 00:26:23]} {[%emt 00:00:02]} 10.
Be3 {[%clk 00:25:56]} {[%emt 00:00:02]} cxd4 {[%clk 00:25:40]} {[%emt
00:00:54]} 11. Nxd4 {[%clk 00:24:54]} {[%emt 00:01:11]} Qc7 {[%clk 00:23:31]}
{[%emt 00:02:19]} 12. Bb3 {[%clk 00:22:04]} {[%emt 00:03:00]} Rd8 {[%clk
00:21:38]} {[%emt 00:02:03]} 13. Qf3 {[%clk 00:19:29]} {[%emt 00:02:45]} e6
{[%clk 00:18:51]} {[%emt 00:02:57]} 14. Rfd1 {[%clk 00:18:16]} {[%emt
00:01:22]} Bd7 {[%clk 00:12:16]} {[%emt 00:06:46]} 15. Nb5 {[%clk 00:14:19]}
{[%emt 00:04:07]} Ne5 {[%clk 00:06:49]} {[%emt 00:05:37]} 16. Nxc7 {[%clk
00:10:25]} {[%emt 00:04:04]} Nxf3+ {[%clk 00:06:57]} {[%emt 00:00:02]} 17. gxf3
{[%clk 00:10:31]} {[%emt 00:00:04]} Rac8 {[%clk 00:07:01]} {[%emt 00:00:05]} 18.
Nxe6 {[%clk 00:10:11]} {[%emt 00:00:30]} Bxe6 {[%clk 00:06:38]} {[%emt
00:00:34]} 19. Bxe6 {[%clk 00:09:22]} {[%emt 00:00:58]} fxe6 {[%clk 00:06:44]}
{[%emt 00:00:04]} 20. Bxa7 {[%clk 00:06:27]} {[%emt 00:03:06]} Bxc3 {[%clk
00:04:58]} {[%emt 00:01:56]} 21. Rxd8+ {[%clk 00:05:09]} {[%emt 00:01:28]} Rxd8
{[%clk 00:05:07]} {[%emt 00:00:02]} 22. Rb1 {[%clk 00:05:12]} {[%emt 00:00:06]}
Rd7 {[%clk 00:04:46]} {[%emt 00:00:31]} 23. Be3 {[%clk 00:04:58]} {[%emt
00:00:24]} Kf7 {[%clk 00:04:34]} {[%emt 00:00:22]} 24. Kg2 {[%clk 00:04:20]}
{[%emt 00:00:48]} Kf6 {[%clk 00:04:24]} {[%emt 00:00:20]} 25. Rb5 {[%clk
00:03:30]} {[%emt 00:00:59]} Rc7 {[%clk 00:02:38]} {[%emt 00:01:57]} 26. a4
{[%clk 00:03:04]} {[%emt 00:00:36]} Rd7 {[%clk 00:02:06]} {[%emt 00:00:41]} 27.
a5 {[%clk 00:03:03]} {[%emt 00:00:12]} Rc7 {[%clk 00:02:08]} {[%emt 00:00:08]}
28. h4 {[%clk 00:02:43]} {[%emt 00:00:29]} Kg7 {[%clk 00:01:39]} {[%emt
00:00:39]} 29. f4 {[%clk 00:01:47]} {[%emt 00:01:06]} Bf6 {[%clk 00:01:42]}
{[%emt 00:00:07]} 30. Kg3 {[%clk 00:01:50]} {[%emt 00:00:08]} Rd7 {[%clk
00:01:33]} {[%emt 00:00:19]} 31. e5 {[%clk 00:01:55]} {[%emt 00:00:05]} Be7
{[%clk 00:01:36]} {[%emt 00:00:06]} 32. Rb6 {[%clk 00:01:46]} {[%emt 00:00:18]}
Kf7 {[%clk 00:01:45]} {[%emt 00:00:03]} 33. Rb5 {[%clk 00:01:33]} {[%emt
00:00:22]} h5 {[%clk 00:01:46]} {[%emt 00:00:09]} 34. Bc5 {[%clk 00:01:28]}
{[%emt 00:00:16]} Rd5 {[%clk 00:01:10]} {[%emt 00:00:41]} 35. Rxb7 {[%clk
00:01:07]} {[%emt 00:00:36]} Rxc5 {[%clk 00:01:19]} {[%emt 00:00:01]} 36. a6
{[%clk 00:01:09]} {[%emt 00:00:07]} Rc3+ {[%clk 00:01:21]} {[%emt 00:00:08]} 37.
Kg2 {[%clk 00:01:15]} {[%emt 00:00:05]} Ra3 {[%clk 00:01:15]} {[%emt 00:00:16]}
38. a7 {[%clk 00:01:22]} {[%emt 00:00:03]} Ra4 {[%clk 00:00:52]} {[%emt
00:00:33]} 39. Kg3 {[%clk 00:01:27]} {[%emt 00:00:04]} Ra3+ {[%emt 00:00:17]}
1/2-1/2



[ePGN "0.1;DGT LiveChess/2.2.6"]